bitfinex/quotes_BTCUSD_20250224
["timestamp","ask_amount","ask_price","bid_price","bid_amount"]
[1740384630495,0.308039,95945.0,95944.0,0.00885]
[1740384634625,0.308039,95945.0,95944.0,0.00485]
[1740384634856,0.308039,95945.0,95944.0,0.00085]
[1740384635042,0.308039,95945.0,95944.0,0.00385]
[1740384635442,0.308039,95945.0,95944.0,0.00085]
[1740384636334,0.308039,95945.0,95944.0,0.00285]
[1740384636742,0.308039,95945.0,95944.0,0.00585]
[1740384637178,0.308039,95945.0,95944.0,0.00285]
[1740384637362,0.308039,95945.0,95944.0,0.00085]
[1740384637563,0.308039,95945.0,95944.0,0.00185]
[1740384637762,0.308039,95945.0,95944.0,0.00285]
[1740384637974,0.308039,95945.0,95944.0,0.00185]
[1740384638391,0.308039,95945.0,95944.0,0.00285]
[1740384651873,0.308039,95945.0,95944.0,0.00185]
[1740384652087,0.308039,95945.0,95944.0,0.00085]
[1740384657578,0.308039,95945.0,95944.0,0.00285]
[1740384657981,0.208468,95938.0,95931.0,0.0789]
[1740384658186,0.35699138,95945.0,95921.0,0.0825]
[1740384658187,0.156377,95922.0,95921.0,0.0825]
[1740384658627,0.156377,95922.0,95921.0,0.0885964]
[1740384658829,0.156377,95922.0,95921.0,0.0825]
[1740384659881,0.158377,95922.0,95921.0,0.0935]
[1740384660733,0.308377,95922.0,95921.0,0.0935]
[1740384661075,0.31829413,95922.0,95921.0,0.0935]
[1740384662786,0.31829413,95922.0,95921.0,0.09435]
[1740384665727,0.31829413,95922.0,95921.0,0.01185]
[1740384666755,0.31729413,95922.0,95921.0,0.00685]
[1740384667139,0.31729413,95922.0,95921.0,0.01085]
[1740384667252,0.31629413,95922.0,95921.0,0.00485]
[1740384667451,0.31629413,95922.0,95921.0,0.00085]
[1740384668518,0.31629413,95922.0,95921.0,0.00485]
[1740384668859,0.31629413,95922.0,95921.0,0.00185]
[1740384669066,0.31629413,95922.0,95921.0,0.00285]
[1740384669539,0.31629413,95922.0,95921.0,0.00185]
[1740384669730,0.31629413,95922.0,95921.0,0.00285]
[1740384678967,0.15,95921.0,95907.0,0.0017006]
[1740384679203,0.306385,95917.0,95907.0,0.0017006]
[1740384680887,0.40066701,95917.0,95907.0,0.0017006]
[1740384681151,0.306385,95917.0,95907.0,0.0017006]
[1740384681715,0.306385,95917.0,95916.0,0.0027006]
[1740384681954,0.306393,95912.0,95907.0,0.0017006]
[1740384682187,0.306399,95908.0,95907.0,0.0017006]
[1740384683463,0.306399,95908.0,95891.0,0.0786]
[1740384683464,0.306425,95892.0,95891.0,0.0786]
[1740384683979,0.306425,95892.0,95891.0,0.08472319]
[1740384684231,0.306425,95892.0,95891.0,0.0786]
[1740384685187,0.156425,95892.0,95891.0,0.0786]
[1740384685776,0.156425,95892.0,95891.0,0.0846]
[1740384687604,0.156425,95892.0,95891.0,0.08545]
[1740384688663,0.10971565,95901.0,95892.0,0.0755]
[1740384688921,0.156423,95894.0,95892.0,0.0755]
[1740384689129,0.208552,95899.0,95892.0,0.0755]
[1740384689130,0.20856,95896.0,95893.0,0.0061214]
[1740384689350,0.156421,95895.0,95892.0,0.0755]
[1740384689561,0.156422,95894.0,95892.0,0.0755]
[1740384689796,0.156421,95895.0,95892.0,0.0755]
[1740384690009,0.15642,95896.0,95893.0,0.0061214]
[1740384690244,0.208555,95898.0,95894.0,0.0769]
[1740384690457,0.156421,95895.0,95894.0,0.08302051]
[1740384690674,0.156419,95897.0,95894.0,0.08302051]
[1740384690897,0.15642,95896.0,95894.0,0.08302051]
[1740384691349,0.156419,95897.0,95894.0,0.08302051]
[1740384691574,0.156419,95897.0,95894.0,0.0769]
[1740384691782,0.208546,95902.0,95894.0,0.0799]
[1740384692009,0.00816,95936.0,95894.0,0.0799]
[1740384692010,0.10971565,95910.0,95894.0,0.0799]
[1740384692187,0.156411,95901.0,95895.0,0.08337085]
[1740384692418,0.156409,95902.0,95895.0,0.08211961]
[1740384692624,0.10971565,95910.0,95895.0,0.08211961]
[1740384692830,0.15641,95902.0,95897.0,0.076]
[1740384693037,0.208544,95903.0,95899.0,0.076]
[1740384693038,0.156408,95903.0,95899.0,0.076]
[1740384693259,0.156408,95903.0,95901.0,0.076]
[1740384693474,0.15,95912.0,95900.0,0.14774569]
[1740384693475,0.00786681,95929.0,95903.0,0.076]
[1740384693692,0.00786681,95929.0,95907.0,0.08356968]
[1740384693906,0.15786681,95929.0,95909.0,0.0772]
[1740384694119,0.156397,95910.0,95909.0,0.0772]
[1740384695824,0.158397,95910.0,95909.0,0.0772]
[1740384696033,0.160397,95910.0,95909.0,0.0772]
[1740384696751,0.160396,95910.0,95909.0,0.0772]
[1740384699192,0.1620966,95910.0,95909.0,0.0772]
[1740384701140,0.1600966,95910.0,95909.0,0.0772]
[1740384701346,0.1580966,95910.0,95909.0,0.08330711]
[1740384701765,0.1580966,95910.0,95909.0,0.08730711]
[1740384701972,0.1580966,95910.0,95909.0,0.09130711]
[1740384707803,0.208522,95914.0,95909.0,0.09130711]
[1740384708029,0.37571793,95930.0,95910.0,0.10264569]
[1740384708205,0.156394,95911.0,95910.0,0.10875191]
[1740384708785,0.01005136,95922.0,95910.0,0.39807891]
[1740384708990,0.01005136,95922.0,95910.0,0.10875191]
[1740384709221,0.156384,95918.0,95911.0,0.0812]
[1740384709424,0.156384,95918.0,95913.0,0.0812]
[1740384709425,0.156383,95918.0,95913.0,0.0812]
[1740384709631,0.156383,95918.0,95914.0,0.10264569]
[1740384709837,0.156385,95917.0,95915.0,0.0753]
[1740384710089,0.156385,95917.0,95916.0,0.10264569]
[1740384710582,0.208507,95920.0,95916.0,0.10264569]
[1740384710583,0.208507,95920.0,95916.0,0.10874655]
[1740384710797,0.0099688,95922.0,95918.0,0.082]
[1740384711003,0.156378,95921.0,95919.0,0.10389658]
[1740384711203,0.156378,95921.0,95919.0,0.10264569]
[1740384711415,0.156378,95921.0,95919.0,0.10874388]
[1740384711623,0.208498,95924.0,95919.0,0.10874388]
[1740384711831,0.156378,95922.0,95919.0,0.10874388]
[1740384712126,0.2102034,95922.0,95919.0,0.10874388]
[1740384712320,0.15638,95920.0,95919.0,0.10874388]
[1740384712526,0.156378,95921.0,95919.0,0.10874388]
[1740384712944,0.1580774,95922.0,95919.0,0.10874388]
[1740384714617,0.1590774,95922.0,95919.0,0.10874388]
[1740384715454,0.156378,95921.0,95919.0,0.10874388]
[1740384715661,0.0027004,95922.0,95919.0,0.10874388]
[1740384715908,0.0027004,95922.0,95919.0,0.10999476]
[1740384716323,0.0017004,95922.0,95919.0,0.10999476]
[1740384716735,0.0017004,95922.0,95919.0,0.10874388]
[1740384717190,0.0017004,95922.0,95920.0,0.00125092]
[1740384717404,0.0017004,95922.0,95921.0,0.18074569]
[1740384717614,0.0027004,95922.0,95921.0,0.18199649]
[1740384717842,0.0027004,95922.0,95921.0,0.18785816]
[1740384718019,0.0027004,95922.0,95921.0,0.18910894]
[1740384718232,0.0017004,95922.0,95921.0,0.18785816]
[1740384718847,0.0017004,95922.0,95921.0,0.18910894]
[1740384719099,0.0017004,95922.0,95921.0,0.18785816]
[1740384719308,0.1580774,95922.0,95921.0,0.18785816]
[1740384719570,0.1590774,95922.0,95921.0,0.18785816]
[1740384719996,0.1580774,95922.0,95921.0,0.18785816]
[1740384720393,0.1590774,95922.0,95921.0,0.18785816]
[1740384720839,0.1590774,95922.0,95921.0,0.00711247]
[1740384721235,0.156388,95915.0,95914.0,0.075]
[1740384721402,0.156388,95915.0,95914.0,0.17764569]
[1740384722663,0.156388,95915.0,95914.0,0.17964569]
[1740384722872,0.156388,95915.0,95914.0,0.18164569]
[1740384725204,0.156388,95915.0,95914.0,0.004]
[1740384734284,0.156388,95915.0,95914.0,0.18774569]
[1740384734497,0.156388,95915.0,95914.0,0.19486545]
[1740384736420,0.0017004,95922.0,95914.0,0.19486545]
[1740384736620,0.0017004,95922.0,95915.0,0.14899661]
[1740384736832,0.0017004,95922.0,95916.0,0.238485]
[1740384737057,0.0017004,95922.0,95918.0,0.0821]
[1740384737290,0.0017004,95922.0,95920.0,0.23848]
[1740384737480,0.0017004,95922.0,95921.0,0.18599649]
[1740384737690,0.0017004,95922.0,95921.0,0.19310896]
[1740384737904,0.0017004,95922.0,95921.0,0.19185816]
[1740384738056,0.0017004,95922.0,95921.0,0.19310894]
[1740384738269,0.0027004,95922.0,95921.0,0.19185816]
[1740384738705,0.0017004,95922.0,95921.0,0.19185816]
[1740384739011,0.0027004,95922.0,95921.0,0.19685816]
[1740384739217,0.0037004,95922.0,95921.0,0.19685816]
[1740384739653,0.0027004,95922.0,95921.0,0.19810897]
[1740384740041,0.0037004,95922.0,95921.0,0.20310897]
[1740384740554,0.0037004,95922.0,95921.0,0.20185816]
[1740384744349,0.1600774,95922.0,95921.0,0.20185816]
[1740384744550,0.0037004,95922.0,95921.0,0.20185816]
[1740384744800,0.1600774,95922.0,95921.0,0.20185816]
[1740384747119,0.0037004,95922.0,95921.0,0.20185816]
[1740384747424,0.0037004,95922.0,95921.0,0.20310905]
[1740384747992,0.1600774,95922.0,95921.0,0.20185816]
[1740384750797,0.0037004,95922.0,95921.0,0.20185816]
[1740384751289,0.1600774,95922.0,95921.0,0.20185816]
[1740384751780,0.1600774,95922.0,95921.0,0.11975816]
[1740384753576,0.3100774,95922.0,95921.0,0.01711247]
[1740384754040,0.3100774,95922.0,95921.0,0.01]
[1740384754466,0.3090774,95922.0,95921.0,0.005]
[1740384754714,0.156388,95915.0,95912.0,0.0008502]
[1740384757369,0.157388,95915.0,95914.0,0.112964]
[1740384757779,0.16391455,95915.0,95914.0,0.112964]
[1740384757920,0.16491455,95915.0,95914.0,0.118964]
[1740384760657,0.31491455,95915.0,95914.0,0.118964]
[1740384763273,0.31491455,95915.0,95914.0,0.118751]
[1740384767884,0.308388,95915.0,95914.0,0.118751]
[1740384774517,0.306394,95911.0,95910.0,4e-07]
[1740384775971,0.306394,95911.0,95910.0,0.0040004]
[1740384776729,0.306394,95911.0,95910.0,4e-07]
[1740384777136,0.306394,95911.0,95910.0,0.0030004]
[1740384778233,0.31292244,95911.0,95910.0,0.0030004]
[1740384780509,0.36132244,95911.0,95910.0,4e-07]
[1740384780720,0.45846329,95911.0,95910.0,4e-07]
[1740384781191,0.36132244,95911.0,95910.0,4e-07]
[1740384781400,0.44292244,95911.0,95910.0,4e-07]
[1740384781606,0.306416,95898.0,95882.0,0.0016992]
[1740384783114,0.307416,95898.0,95882.0,0.0016992]
[1740384783534,0.308416,95898.0,95882.0,0.0016992]
[1740384785147,0.31494483,95898.0,95882.0,0.0016992]
[1740384788427,0.32283209,95898.0,95882.0,0.0016992]
[1740384788851,0.40193209,95898.0,95882.0,0.0016992]
[1740384789691,0.40093209,95898.0,95882.0,0.0016992]
[1740384790338,0.39993209,95898.0,95882.0,0.0016992]
[1740384792704,0.5502896,95898.0,95882.0,0.0016992]
[1740384793067,0.44773209,95898.0,95897.0,3e-07]
[1740384793491,0.44773209,95898.0,95891.0,3e-07]
[1740384793492,0.306425,95892.0,95891.0,3e-07]
[1740384793851,0.42361154,95892.0,95891.0,3e-07]
[1740384794961,0.43014037,95892.0,95891.0,3e-07]
[1740384800917,0.61068606,95892.0,95891.0,3e-07]
[1740384803275,0.53278606,95892.0,95891.0,3e-07]
[1740384803559,0.16295383,95892.0,95891.0,3e-07]
[1740384804386,0.31295383,95892.0,95891.0,3e-07]
[1740384805727,0.306425,95892.0,95891.0,0.0782003]
[1740384805944,0.156425,95892.0,95891.0,0.0782003]
[1740384806154,0.16737619,95901.0,95896.0,0.0782]
[1740384806368,0.0016998,95915.0,95896.0,0.0782]
[1740384806369,0.156417,95897.0,95896.0,0.0782]
[1740384806789,0.306417,95897.0,95896.0,0.0782]
[1740384807143,0.156417,95897.0,95896.0,0.0782]
[1740384808118,0.157417,95897.0,95896.0,0.0782]
[1740384813340,0.16394494,95897.0,95896.0,0.0782]
[1740384813689,0.16394494,95897.0,95896.0,0.18084569]
[1740384814889,0.157417,95897.0,95896.0,0.18084569]
[1740384815516,0.001,95897.0,95896.0,0.18084569]
[1740384815728,0.307417,95897.0,95896.0,0.18084569]
[1740384816338,0.001,95897.0,95896.0,0.15124569]
[1740384816549,0.001,95897.0,95896.0,0.30891587]
[1740384816760,0.001,95897.0,95896.0,0.15124569]
[1740384816960,0.157417,95897.0,95896.0,0.15249687]
[1740384817171,0.157417,95897.0,95896.0,0.15124569]
[1740384819229,0.1591172,95897.0,95896.0,0.15124569]
[1740384820495,0.1656448,95897.0,95896.0,0.15124569]
[1740384821464,0.1656448,95897.0,95896.0,0.1583842]
[1740384822079,0.1591172,95897.0,95896.0,0.1583842]
[1740384822967,0.0947803,95899.0,95896.0,0.1583842]
[1740384823164,0.20855,95901.0,95897.0,0.10264569]
[1740384823365,0.156416,95898.0,95897.0,0.10264569]
[1740384823587,0.1629436,95898.0,95897.0,0.10264569]
[1740384825353,0.156416,95898.0,95897.0,0.10264569]
[1740384826292,0.156416,95898.0,95897.0,0.10564569]
[1740384828367,0.1629436,95898.0,95897.0,0.10564569]
[1740384831323,0.1629436,95898.0,95897.0,0.10649569]
[1740384834761,0.0065276,95898.0,95897.0,0.10649569]
[1740384835581,0.0065276,95898.0,95897.0,0.10774689]
[1740384835779,0.1629436,95898.0,95897.0,0.10774689]
[1740384836027,0.1629436,95898.0,95897.0,0.10649569]
[1740384836199,0.1629436,95898.0,95897.0,0.11363316]
[1740384836829,0.156416,95898.0,95897.0,0.11363316]
[1740384837175,0.156416,95898.0,95897.0,0.10649569]
[1740384839576,0.16294359,95898.0,95897.0,0.10649569]
[1740384849940,0.16294359,95898.0,95897.0,0.11363316]
[1740384850354,0.16294359,95898.0,95897.0,0.10649569]
[1740384850896,0.16294359,95898.0,95897.0,0.11363316]
[1740384851342,0.16294359,95898.0,95897.0,0.10649569]
[1740384851907,0.16294359,95898.0,95897.0,0.11363316]
[1740384852357,0.16294359,95898.0,95897.0,0.10649569]
[1740384852559,0.16294359,95898.0,95897.0,0.11363316]
[1740384853710,0.16294359,95898.0,95897.0,0.10649569]
[1740384854440,0.156416,95898.0,95897.0,0.10649569]
[1740384859557,0.16294347,95898.0,95897.0,0.10649569]
[1740384871489,0.208547,95902.0,95897.0,0.10649569]
[1740384871728,0.156416,95898.0,95897.0,0.11363316]
[1740384871935,0.306416,95898.0,95897.0,0.01098747]
[1740384872152,0.306416,95898.0,95897.0,0.00385]
[1740384872768,0.306416,95898.0,95897.0,0.00085]
[1740384872975,0.306416,95898.0,95897.0,0.00385]
[1740384873515,0.306416,95898.0,95897.0,0.00085]
[1740384873735,0.306416,95898.0,95897.0,0.00385]
[1740384874256,0.15,95898.0,95897.0,0.00385]
[1740384874480,0.15,95898.0,95897.0,0.01069716]
[1740384874481,0.306416,95898.0,95897.0,0.01069716]
[1740384874680,0.306416,95898.0,95897.0,0.00385]
[1740384875700,0.306416,95898.0,95897.0,0.10649569]
[1740384876009,0.306416,95898.0,95897.0,0.11334285]
[1740384876209,0.306416,95898.0,95897.0,0.10649569]
[1740384878093,0.306416,95898.0,95897.0,0.00385]
[1740384884354,0.15,95898.0,95897.0,0.10649569]
[1740384884554,0.15,95898.0,95897.0,0.11334285]
[1740384884976,0.306416,95898.0,95897.0,0.11334285]
[1740384885255,0.15,95898.0,95897.0,0.11334285]
[1740384885560,0.15,95898.0,95897.0,0.10649569]
[1740384885839,0.306416,95898.0,95897.0,0.11334285]
[1740384886013,0.306416,95898.0,95897.0,0.10649569]
[1740384889562,0.15,95898.0,95897.0,0.10649569]
[1740384889763,0.15,95898.0,95897.0,0.11334285]
[1740384889963,0.1565278,95898.0,95897.0,0.11334285]
[1740384891048,0.1565278,95898.0,95897.0,0.10649569]
[1740384891249,0.3129438,95898.0,95897.0,0.11334285]
[1740384892172,0.1565278,95898.0,95897.0,0.10649569]
[1740384892386,0.1565278,95898.0,95897.0,0.11334285]
[1740384893784,0.3129438,95898.0,95897.0,0.11334285]
[1740384894128,0.1565278,95898.0,95897.0,0.11334285]
[1740384898441,0.1565278,95898.0,95897.0,0.10649569]
[1740384898640,0.3129438,95898.0,95897.0,0.11334285]
[1740384899254,0.1565278,95898.0,95897.0,0.11334285]
[1740384901069,0.3129438,95898.0,95897.0,0.01069716]
[1740384901268,0.3129438,95898.0,95897.0,0.00385]
[1740384903285,0.1565278,95898.0,95897.0,0.160267]
[1740384903757,0.1565278,95898.0,95897.0,0.26975985]
[1740384903929,0.3129438,95898.0,95897.0,0.11334285]
[1740384904146,0.1565278,95898.0,95897.0,0.11334285]
[1740384904355,0.3129438,95898.0,95897.0,0.11334285]
[1740384905135,0.3129438,95898.0,95897.0,0.10649569]
[1740384905699,0.3129438,95898.0,95897.0,0.11334285]
[1740384906533,0.1565278,95898.0,95897.0,0.11334285]
[1740384906727,0.1565278,95898.0,95897.0,0.26975985]
[1740384906936,0.1565278,95898.0,95897.0,0.11334285]
[1740384908572,0.3129438,95898.0,95897.0,0.11334285]
[1740384908952,0.3129438,95898.0,95897.0,0.10649569]
[1740384909374,0.3129438,95898.0,95897.0,0.11334285]
[1740384909917,0.3129438,95898.0,95897.0,0.10649569]
[1740384912783,0.31657034,95898.0,95897.0,0.10649569]
[1740384914260,0.31657034,95898.0,95897.0,0.00385]
[1740384917069,0.39507034,95898.0,95897.0,0.00385]
[1740384920312,0.39507034,95898.0,95897.0,0.00085]
[1740384920508,0.39507034,95898.0,95897.0,0.00385]
[1740384922746,0.38854254,95898.0,95897.0,0.00385]
[1740384924352,0.384916,95898.0,95897.0,0.00385]
[1740384925467,0.39144518,95898.0,95897.0,0.00385]
[1740384926265,0.39144518,95898.0,95897.0,0.00085]
[1740384926675,0.39144518,95898.0,95897.0,0.00285]
[1740384927057,0.39144518,95898.0,95897.0,0.00085]
[1740384927508,0.39144518,95898.0,95897.0,0.00185]
[1740384930230,0.384916,95898.0,95897.0,0.00185]
[1740384933224,0.48756169,95898.0,95897.0,0.00185]
[1740384933393,0.306425,95892.0,95891.0,3e-07]
[1740384934672,0.30644,95883.0,95882.0,0.0016992]
[1740384936394,0.30844,95883.0,95882.0,0.0036992]
[1740384937217,0.31496957,95883.0,95882.0,0.0036992]
[1740384939137,0.30844,95883.0,95882.0,0.0036992]
[1740384941972,0.002,95883.0,95882.0,0.19210768]
[1740384942226,0.002,95883.0,95882.0,0.39153821]
[1740384942443,0.002,95883.0,95882.0,0.39714968]
[1740384942831,0.001,95883.0,95882.0,0.39514968]
[1740384943033,0.15,95891.0,95882.0,0.23870768]
[1740384943243,0.15,95891.0,95887.0,0.156433]
[1740384943452,0.15,95892.0,95888.0,0.25907769]
[1740384943659,0.15,95892.0,95888.0,0.10950223]
[1740384943856,0.15,95893.0,95888.0,0.10950223]
[1740384944686,0.16736616,95898.0,95888.0,0.10950223]
[1740384944687,0.30643,95889.0,95888.0,0.10950223]
[1740384945735,0.30643,95889.0,95888.0,0.00685654]
[1740384946075,0.15644,95883.0,95882.0,0.1291992]
[1740384946284,0.15644,95883.0,95882.0,0.23184489]
[1740384946505,0.15644,95883.0,95882.0,0.15294489]
[1740384946908,0.15644,95883.0,95882.0,0.0016992]
[1740384947342,0.15744,95883.0,95882.0,0.0066992]
[1740384948137,0.16396893,95883.0,95882.0,0.0066992]
[1740384948733,0.31396893,95883.0,95882.0,0.0066992]
[1740384949368,0.31496893,95883.0,95882.0,0.0136992]
[1740384971633,0.30844,95883.0,95882.0,0.0136992]
[1740384980680,0.31496945,95883.0,95882.0,0.0136992]
[1740384994066,0.3295103,95883.0,95882.0,0.0136992]
[1740384994304,0.3285103,95883.0,95882.0,0.0066992]
[1740384994460,0.3285103,95883.0,95882.0,0.0076992]
[1740384994653,0.3275103,95883.0,95882.0,0.0026992]
[1740384995264,0.3275103,95883.0,95882.0,0.0056992]
[1740384995445,0.3275103,95883.0,95882.0,0.0046992]
[1740384995645,0.3275103,95883.0,95882.0,0.0056992]
[1740384997302,0.31296945,95883.0,95882.0,0.0056992]
[1740384999408,0.30644,95883.0,95882.0,0.0056992]
[1740385001760,0.31296958,95883.0,95882.0,0.0056992]
[1740385005066,0.30644,95883.0,95882.0,0.0056992]
[1740385014816,0.15,95884.0,95882.0,0.0056992]
[1740385014986,0.15644,95883.0,95882.0,0.0056992]
[1740385015680,0.17098085,95883.0,95882.0,2e-07]
[1740385016547,0.15644,95883.0,95882.0,2e-07]
[1740385016945,0.30644,95883.0,95882.0,2e-07]
[1740385017758,0.306458,95872.0,95871.0,0.0004]
[1740385019018,0.31671541,95872.0,95871.0,0.0004]
[1740385020457,0.31671541,95872.0,95871.0,0.0014]
[1740385020880,0.31671541,95872.0,95871.0,0.0004]
[1740385021642,0.33125626,95872.0,95871.0,0.0004]
[1740385022223,0.33125626,95872.0,95871.0,0.0034]
[1740385022718,0.33125626,95872.0,95871.0,0.0004]
[1740385022951,0.33125626,95872.0,95871.0,0.0014]
[1740385024234,0.33125626,95872.0,95871.0,0.00225]
[1740385025922,0.31671541,95872.0,95871.0,0.00225]
[1740385027502,0.31671541,95872.0,95871.0,1e-08]
[1740385028707,0.31771541,95872.0,95871.0,1e-08]
[1740385030762,0.31871541,95872.0,95871.0,1e-08]
[1740385031974,0.31845803,95872.0,95871.0,1e-08]
[1740385035781,0.30647,95865.0,95864.0,0.00165981]
[1740385036598,0.38257,95865.0,95864.0,0.00165981]
[1740385038250,0.306484,95856.0,95855.0,0.0016998]
[1740385040275,0.434084,95856.0,95855.0,0.0016998]
[1740385040496,0.434084,95856.0,95831.0,0.0004]
[1740385040497,0.306522,95833.0,95831.0,0.0004]
[1740385041153,0.3259,95855.0,95833.0,0.0795]
[1740385041326,0.26639194,95843.0,95841.0,0.1246]
[1740385041526,0.10988594,95860.0,95841.0,0.1246]
[1740385041527,0.10988594,95851.0,95842.0,0.10264569]
[1740385041800,0.208654,95853.0,95845.0,0.08356968]
[1740385042006,0.00777664,95877.0,95862.0,0.0762]
[1740385042208,0.156471,95864.0,95863.0,0.15224569]
[1740385042381,0.156471,95864.0,95863.0,0.15912828]
[1740385043133,0.306471,95864.0,95863.0,0.00688259]
[1740385043339,0.156484,95856.0,95855.0,0.0805]
[1740385043553,0.156484,95856.0,95855.0,0.08739093]
[1740385045497,0.157484,95856.0,95855.0,0.09039093]
[1740385045916,0.158484,95856.0,95855.0,0.09039093]
[1740385046789,0.158484,95856.0,95855.0,0.00989093]
[1740385047364,0.308484,95856.0,95855.0,0.00989093]
[1740385047526,0.308484,95856.0,95855.0,0.003]
[1740385048370,0.307484,95856.0,95855.0,0.003]
[1740385048688,0.358646,95856.0,95852.0,0.0468]
[1740385048885,0.15,95856.0,95852.0,0.0468]
[1740385049031,0.306484,95856.0,95855.0,0.0028502]
[1740385049691,0.306484,95856.0,95855.0,0.0008502]
[1740385051516,0.306484,95856.0,95855.0,0.0028502]
[1740385054115,0.208644,95858.0,95855.0,0.0028502]
[1740385054316,0.156484,95856.0,95855.0,0.0028502]
[1740385054944,0.156484,95856.0,95855.0,0.0008502]
[1740385055344,0.156484,95856.0,95855.0,0.0028502]
[1740385055626,0.156484,95856.0,95855.0,0.0008502]
[1740385056030,0.156484,95856.0,95855.0,0.0028502]
[1740385061092,0.158184,95856.0,95855.0,0.0028502]
[1740385062013,0.0017,95856.0,95855.0,0.22839589]
[1740385062424,0.0017,95856.0,95855.0,0.39177282]
[1740385063056,0.0017,95856.0,95855.0,0.23855187]
[1740385063207,0.0017,95856.0,95855.0,0.39503787]
[1740385064935,0.0017,95856.0,95855.0,0.39177282]
[1740385066162,0.0017,95856.0,95855.0,0.23528682]
[1740385067559,0.0017,95856.0,95855.0,0.39177282]
[1740385067769,0.0017,95856.0,95855.0,0.23528682]
[1740385068190,0.0017,95856.0,95855.0,0.39177282]
[1740385071219,0.0017,95856.0,95855.0,0.23528682]
[1740385071628,0.0017,95856.0,95855.0,0.39177282]
[1740385071848,0.0017,95856.0,95855.0,0.23528682]
[1740385072251,0.0017,95856.0,95855.0,0.39177282]
[1740385074460,0.0017,95856.0,95855.0,0.23528682]
[1740385075295,0.0017,95856.0,95855.0,0.39177282]
[1740385076443,0.0017,95856.0,95855.0,0.23528682]
[1740385083566,0.156481,95859.0,95855.0,0.23528682]
[1740385083771,0.156483,95857.0,95856.0,0.10264569]
[1740385083991,0.156481,95859.0,95856.0,0.10953558]
[1740385084364,0.156478,95860.0,95856.0,0.10953558]
[1740385084723,0.156479,95859.0,95856.0,0.10953558]
[1740385084907,0.22147228,95865.0,95856.0,0.10953558]
[1740385085093,0.156481,95858.0,95856.0,0.10953558]
[1740385085628,0.156479,95860.0,95856.0,0.10953558]
[1740385086052,0.22147228,95865.0,95856.0,0.10953558]
[1740385086189,0.156479,95859.0,95856.0,0.10953558]
[1740385086389,0.22147228,95865.0,95856.0,0.10953558]
[1740385086640,0.156478,95860.0,95856.0,0.10953558]
[1740385087008,0.156479,95859.0,95856.0,0.11053558]
[1740385087210,0.156483,95857.0,95856.0,0.11053558]
[1740385087560,0.156483,95857.0,95856.0,0.10953558]
[1740385088107,0.156483,95857.0,95856.0,0.10264569]
[1740385088445,0.156483,95857.0,95856.0,0.10464569]
[1740385090709,0.156483,95857.0,95856.0,0.002]
[1740385093323,0.238983,95857.0,95856.0,0.002]
[1740385094553,0.240683,95857.0,95856.0,0.002]
[1740385096321,0.286283,95857.0,95856.0,0.002]
[1740385098638,0.286283,95857.0,95855.0,0.0008502]
[1740385098639,0.156484,95856.0,95855.0,0.0008502]
[1740385101526,0.156484,95856.0,95855.0,0.0018502]
[1740385102481,0.156522,95833.0,95832.0,7e-05]
[1740385102727,0.156522,95833.0,95832.0,0.10271569]
[1740385102974,0.156522,95833.0,95832.0,0.10963061]
[1740385103557,0.16305357,95833.0,95832.0,0.10963061]
[1740385103788,0.16305357,95833.0,95832.0,0.10271569]
[1740385104005,0.16305357,95833.0,95832.0,0.10963061]
[1740385104782,0.16505357,95833.0,95832.0,0.11363061]
[1740385104967,0.16505357,95833.0,95832.0,0.01098492]
[1740385105324,0.16405357,95833.0,95832.0,7e-05]
[1740385105731,0.16505357,95833.0,95832.0,7e-05]
[1740385106805,0.16605357,95833.0,95832.0,0.00207]
[1740385107758,0.17653777,95833.0,95832.0,0.00207]
[1740385114354,0.1700062,95833.0,95832.0,0.00207]
[1740385116004,0.18061202,95835.0,95832.0,0.00207]
[1740385116188,0.156522,95833.0,95832.0,0.00207]
[1740385116401,0.16699534,95833.0,95832.0,0.00207]
[1740385117046,0.16699534,95833.0,95832.0,7e-05]
[1740385117185,0.16699534,95833.0,95832.0,0.00307]
[1740385117792,0.16699534,95833.0,95832.0,0.00207]
[1740385117975,0.16699534,95833.0,95832.0,7e-05]
[1740385118386,0.16799534,95833.0,95832.0,0.00207]
[1740385119020,0.16899534,95833.0,95832.0,0.00692]
[1740385121776,0.17552781,95833.0,95832.0,0.00692]
[1740385125174,0.16899534,95833.0,95832.0,0.00692]
[1740385126668,0.16899534,95833.0,95832.0,0.10956569]
[1740385126870,0.16899534,95833.0,95832.0,0.11619593]
[1740385127323,0.16899534,95833.0,95832.0,0.01355024]
[1740385127687,0.16899534,95833.0,95832.0,0.00692]
[1740385128171,0.17552757,95833.0,95832.0,0.10956569]
[1740385128525,0.17552757,95833.0,95832.0,0.11619593]
[1740385133938,0.16899534,95833.0,95832.0,0.11619593]
[1740385140829,0.16899534,95833.0,95832.0,0.01355024]
[1740385141176,0.16899534,95833.0,95832.0,0.00692]
[1740385146531,0.16899534,95833.0,95832.0,0.10956569]
[1740385146892,0.16899534,95833.0,95832.0,0.11619593]
[1740385152342,0.16899534,95833.0,95832.0,0.01355024]
[1740385152750,0.31899534,95833.0,95832.0,0.00692]
[1740385153098,0.31899534,95833.0,95832.0,0.00492]
[1740385153303,0.31799534,95833.0,95832.0,0.00492]
[1740385153568,0.39419534,95833.0,95832.0,0.00692]
[1740385153776,0.39419534,95833.0,95832.0,0.00492]
[1740385153981,0.39319534,95833.0,95832.0,0.00292]
[1740385154192,0.39519534,95833.0,95832.0,0.00692]
[1740385154395,0.39419534,95833.0,95832.0,0.00492]
[1740385154597,0.39419534,95833.0,95832.0,0.00292]
[1740385154713,0.39319534,95833.0,95832.0,0.00292]
[1740385154917,0.39219534,95833.0,95832.0,0.00392]
[1740385155135,0.39219534,95833.0,95832.0,0.00592]
[1740385157531,0.39219534,95833.0,95825.0,0.0008501]
[1740385157532,0.15653,95828.0,95825.0,0.0008501]
[1740385157778,0.15653,95828.0,95827.0,6e-07]
[1740385157779,0.30653,95828.0,95827.0,6e-07]
[1740385158095,0.43273,95828.0,95827.0,6e-07]
[1740385160997,0.44044828,95828.0,95827.0,6e-07]
[1740385167046,0.15,95827.0,95825.0,7e-07]
[1740385167254,0.306533,95826.0,95825.0,7e-07]
[1740385170201,0.306533,95826.0,95825.0,0.0010007]
[1740385170403,0.306533,95826.0,95825.0,7e-07]